{"text_format":"1","workbook":"xlsx","n_sheets":5,"sheets":["SOLICITAÇÃO","CARACTERÍSTICAS CONSTRUTIVAS","FAMÍLIA - REFERÊNCIAS","PLANO DE ENSAIO","Plan1"],"not_rendered":{"charts":0,"images":4,"macros":1,"external_links":3,"defined_names":36,"comments":0,"pivot_tables":0},"unopened":[],"bounds":{"document_bytes":16777216,"sheet_cells":100000,"rows_first":2000,"rows_last":500,"rows_between":2000,"halvings":0,"cell_chars":16384,"cell_head_chars":4096},"cells_cut":0,"cells_raw":0,"read":"whole","date_system":"1900"}

{"sheet":"SOLICITAÇÃO","index":0,"n_rows":46,"n_cols":4,"rows_kept":46,"cut":false,"hidden":false,"merged":[[16,2,16,4],[1,1,1,4],[3,3,4,4],[6,1,6,4],[8,2,8,4],[9,2,9,4],[10,2,10,4],[11,2,11,4],[12,2,12,4],[13,2,13,4],[14,2,14,4],[15,2,15,4],[30,2,30,4],[17,2,17,4],[18,2,18,4],[19,2,19,4],[20,2,20,4],[22,1,22,4],[24,2,24,4],[25,2,25,4],[26,2,26,4],[27,2,27,4],[28,2,28,4],[29,2,29,4],[41,3,41,4],[42,2,42,4],[43,2,43,4],[45,2,45,4],[31,2,31,4],[32,2,32,4],[33,2,33,4],[34,2,34,4],[35,2,35,4],[39,1,39,4],[36,3,36,4],[37,2,37,4]]}
[]
[null,"                                \n                                 ANÁLISE DE VIABILIDADE - CPM\n                 \n                               "]
[]
[null,"SOLICITAÇÃO:","-"]
[null,"MODELO DE CERTIFICAÇÃO:","-"]
[]
[null,"DADOS DA EMPRESA SOLICITANTE"]
[]
[null,"RAZÃO SOCIAL:","-"]
[null,"NOME FANTASIA:","-"]
[null,"CNPJ:","-"]
[null,"ENDEREÇO:","-"]
[null,"BAIRRO:","-"]
[null,"CEP:","-"]
[null,"CIDADE:","-"]
[null,"ESTADO:","-"]
[null,"E-MAIL:","-"]
[null,"NOME DO CONTATO:","-"]
[null,"TELEFONE: (   )","-"]
[null,"DATA DA SOLICITAÇÃO:","-"]
[null,null,"______________________________________________________________________\nAssinatura (obrigatório)"]
[]
[null,"DADOS DA FÁBRICA"]
[]
[null,"RAZÃO SOCIAL:","-"]
[null,"NOME FANTASIA:","-"]
[null,"CNPJ:","-"]
[null,"ENDEREÇO:","-"]
[null,"BAIRRO:","-"]
[null,"CEP:","-"]
[null,"CIDADE:","-"]
[null,"ESTADO:","-"]
[null,"PAÍS:","-"]
[null,"E-MAIL - FÁBRICA:","-"]
[null,"NOME DO CONTATO FÁBRICA:","-"]
[null,"TELEFONE (DDD) XXXXX-XXXX:","-"]
[null,"POSSUI CERTIFICAÇÃO ISO 9001? (vigente)","-",{"$f":"IF(C37=\"SIM\",\"Enviar certificado com validade vigente via e-mail\",\"\")","v":""}]
[null,{"$f":"IF(C37=\"sim\",\"DESCREVA O ESCOPO DE CERTIFICAÇÃO\",\"\")","v":""}]
[]
[null,"IDENTIFICAÇÃO DOS PRODUTOS"]
[]
[null,"POSSUI LICENÇA DE TERCEIROS?\n(USO DE MARCA): ","-",{"$f":"IF(C42=\"SIM\",\"Favor preencher as duas linhas abaixo\",\"\")","v":""}]
[null,{"$f":"IF(C42=\"SIM\",\"PRODUTOS LICENCIADOS:\",\"\")","v":""}]
[null,{"$f":"IF(C42=\"SIM\",\"N° DA LICENÇA P/ USO DE MARCAS:\",\"\")","v":""}]
[null,"EXISTE PROCESSO TERCEIRIZADO:","-"]
[null,{"$f":"IF(C45=\"SIM\",\"QUAL?\",\"\")","v":""}]

{"sheet":"CARACTERÍSTICAS CONSTRUTIVAS","index":1,"n_rows":40,"n_cols":15,"rows_kept":40,"cut":false,"hidden":false,"merged":[[39,11,39,14],[5,1,5,2],[5,4,5,8],[1,1,1,14],[3,1,3,2],[3,4,3,8],[4,1,4,2],[4,4,4,8],[6,1,6,2],[6,4,6,8],[9,1,9,14],[11,1,12,1],[11,4,12,4],[11,7,12,7],[11,10,12,10],[11,13,12,13],[7,1,7,2],[7,4,7,8],[20,10,21,10],[20,13,21,13],[23,1,23,14],[14,1,15,1],[14,4,15,4],[14,7,15,7],[14,10,15,10],[14,13,15,13],[17,1,18,1],[17,4,18,4],[17,7,18,7],[17,10,18,10],[17,13,18,13],[27,1,27,2],[27,4,27,5],[20,1,21,1],[20,4,21,4],[20,7,21,7],[25,1,25,2],[25,4,25,5],[26,1,26,2],[26,4,26,5],[36,4,36,5],[29,1,36,2],[29,4,29,5],[29,7,36,14],[30,4,30,5],[31,4,31,5],[32,4,32,5],[33,4,33,5],[34,4,34,5],[35,4,35,5]]}
[]
[null,"IDENTIFICAÇÃO DO MODELO OBJETO DA CERTIFICAÇÃO"]
[]
[null,"MODELO DO PRODUTO:"]
[null,"MARCA:",null,null,"-"]
[null,"NOME COMERCIAL:",null,null,"-"]
[null,"CÓDIGO DO FABRICANTE:",null,null,"-"]
[null,"FAMÍLIA:"]
[]
[null,"CORES - CÓD BARRAS"]
[]
[null,1,{"$f":"VLOOKUP(B12,'FAMÍLIA - REFERÊNCIAS'!$D$10:$D$34,2,0)","v":{"$error":"#N/A"}},null,5,{"$f":"VLOOKUP(E12,'FAMÍLIA - REFERÊNCIAS'!$D$10:$D$34,2,0)","v":{"$error":"#N/A"}},null,9,{"$f":"VLOOKUP(H12,'FAMÍLIA - REFERÊNCIAS'!$D$10:$D$34,2,0)","v":{"$error":"#N/A"}},null,13,{"$f":"VLOOKUP(K12,'FAMÍLIA - REFERÊNCIAS'!$D$10:$D$34,2,0)","v":{"$error":"#N/A"}},null,17,{"$f":"VLOOKUP(N12,'FAMÍLIA - REFERÊNCIAS'!$D$10:$D$34,2,0)","v":{"$error":"#N/A"}}]
[null,null,{"$f":"VLOOKUP(B12,'FAMÍLIA - REFERÊNCIAS'!$D$10:$D$34,3,0)","v":{"$error":"#N/A"}},null,null,{"$f":"VLOOKUP(E12,'FAMÍLIA - REFERÊNCIAS'!$D$10:$D$34,3,0)","v":{"$error":"#N/A"}},null,null,{"$f":"VLOOKUP(H12,'FAMÍLIA - REFERÊNCIAS'!$D$10:$D$34,3,0)","v":{"$error":"#N/A"}},null,null,{"$f":"VLOOKUP(K12,'FAMÍLIA - REFERÊNCIAS'!$D$10:$D$34,3,0)","v":{"$error":"#N/A"}},null,null,{"$f":"VLOOKUP(N12,'FAMÍLIA - REFERÊNCIAS'!$D$10:$D$34,3,0)","v":{"$error":"#N/A"}}]
[]
[null,2,{"$f":"VLOOKUP(B15,'FAMÍLIA - REFERÊNCIAS'!$D$10:$D$34,2,0)","v":{"$error":"#N/A"}},null,6,{"$f":"VLOOKUP(E15,'FAMÍLIA - REFERÊNCIAS'!$D$10:$D$34,2,0)","v":{"$error":"#N/A"}},null,10,{"$f":"VLOOKUP(H15,'FAMÍLIA - REFERÊNCIAS'!$D$10:$D$34,2,0)","v":{"$error":"#N/A"}},null,14,{"$f":"VLOOKUP(K15,'FAMÍLIA - REFERÊNCIAS'!$D$10:$D$34,2,0)","v":{"$error":"#N/A"}},null,18,{"$f":"VLOOKUP(N15,'FAMÍLIA - REFERÊNCIAS'!$D$10:$D$34,2,0)","v":{"$error":"#N/A"}}]
[null,null,{"$f":"VLOOKUP(B15,'FAMÍLIA - REFERÊNCIAS'!$D$10:$D$34,3,0)","v":{"$error":"#N/A"}},null,null,{"$f":"VLOOKUP(E15,'FAMÍLIA - REFERÊNCIAS'!$D$10:$D$34,3,0)","v":{"$error":"#N/A"}},null,null,{"$f":"VLOOKUP(H15,'FAMÍLIA - REFERÊNCIAS'!$D$10:$D$34,3,0)","v":{"$error":"#N/A"}},null,null,{"$f":"VLOOKUP(K15,'FAMÍLIA - REFERÊNCIAS'!$D$10:$D$34,3,0)","v":{"$error":"#N/A"}},null,null,{"$f":"VLOOKUP(N15,'FAMÍLIA - REFERÊNCIAS'!$D$10:$D$34,3,0)","v":{"$error":"#N/A"}}]
[]
[null,3,{"$f":"VLOOKUP(B18,'FAMÍLIA - REFERÊNCIAS'!$D$10:$D$34,2,0)","v":{"$error":"#N/A"}},null,7,{"$f":"VLOOKUP(E18,'FAMÍLIA - REFERÊNCIAS'!$D$10:$D$34,2,0)","v":{"$error":"#N/A"}},null,11,{"$f":"VLOOKUP(H18,'FAMÍLIA - REFERÊNCIAS'!$D$10:$D$34,2,0)","v":{"$error":"#N/A"}},null,15,{"$f":"VLOOKUP(K18,'FAMÍLIA - REFERÊNCIAS'!$D$10:$D$34,2,0)","v":{"$error":"#N/A"}},null,19,{"$f":"VLOOKUP(N18,'FAMÍLIA - REFERÊNCIAS'!$D$10:$D$34,2,0)","v":{"$error":"#N/A"}}]
[null,null,{"$f":"VLOOKUP(B18,'FAMÍLIA - REFERÊNCIAS'!$D$10:$D$34,3,0)","v":{"$error":"#N/A"}},null,null,{"$f":"VLOOKUP(E18,'FAMÍLIA - REFERÊNCIAS'!$D$10:$D$34,3,0)","v":{"$error":"#N/A"}},null,null,{"$f":"VLOOKUP(H18,'FAMÍLIA - REFERÊNCIAS'!$D$10:$D$34,3,0)","v":{"$error":"#N/A"}},null,null,{"$f":"VLOOKUP(K18,'FAMÍLIA - REFERÊNCIAS'!$D$10:$D$34,3,0)","v":{"$error":"#N/A"}},null,null,{"$f":"VLOOKUP(N18,'FAMÍLIA - REFERÊNCIAS'!$D$10:$D$34,3,0)","v":{"$error":"#N/A"}}]
[]
[null,4,{"$f":"VLOOKUP(B21,'FAMÍLIA - REFERÊNCIAS'!$D$10:$D$34,2,0)","v":{"$error":"#N/A"}},null,8,{"$f":"VLOOKUP(E21,'FAMÍLIA - REFERÊNCIAS'!$D$10:$D$34,2,0)","v":{"$error":"#N/A"}},null,12,{"$f":"VLOOKUP(H21,'FAMÍLIA - REFERÊNCIAS'!$D$10:$D$34,2,0)","v":{"$error":"#N/A"}},null,16,{"$f":"VLOOKUP(K21,'FAMÍLIA - REFERÊNCIAS'!$D$10:$D$34,2,0)","v":{"$error":"#N/A"}},null,20,{"$f":"VLOOKUP(N21,'FAMÍLIA - REFERÊNCIAS'!$D$10:$D$34,2,0)","v":{"$error":"#N/A"}}]
[null,null,{"$f":"VLOOKUP(B21,'FAMÍLIA - REFERÊNCIAS'!$D$10:$D$34,3,0)","v":{"$error":"#N/A"}},null,null,{"$f":"VLOOKUP(E21,'FAMÍLIA - REFERÊNCIAS'!$D$10:$D$34,3,0)","v":{"$error":"#N/A"}},null,null,{"$f":"VLOOKUP(H21,'FAMÍLIA - REFERÊNCIAS'!$D$10:$D$34,3,0)","v":{"$error":"#N/A"}},null,null,{"$f":"VLOOKUP(K21,'FAMÍLIA - REFERÊNCIAS'!$D$10:$D$34,3,0)","v":{"$error":"#N/A"}},null,null,{"$f":"VLOOKUP(N21,'FAMÍLIA - REFERÊNCIAS'!$D$10:$D$34,3,0)","v":{"$error":"#N/A"}}]
[]
[null,"CARACTERÍSTICAS CONSTRUTIVAS - COMPOSIÇÃO"]
[]
[null,"CLASSE :",null,null,"-"]
[null,"MATERIAL: ",null,null,"-"]
[null,"APOIO DE BRAÇO:",null,null,"-"]
[]
[null,"DIMENSÕES (mm)",null,null,"DIMENSÃO GERAL DA CADEIRA:"]
[null,null,null,null,"-"]
[null,null,null,null,"A >> ALTURA DO ASSENTO: "]
[null,null,null,null,"-"]
[null,null,null,null,"B >> DISTÂNCIA ENTRE PERNAS LATERAL: "]
[null,null,null,null,"-"]
[null,null,null,null,{"$f":"IF(E28=\"NÃO\",\"C >> LARGURA DO ASSENTO DA CADEIRA - SEM BRAÇO:\",\"D >> LARGURA DO ASSENTO DA CADEIRA - COM BRAÇO\")","v":"D >> LARGURA DO ASSENTO DA CADEIRA - COM BRAÇO"}]
[null,null,null,null,"-"]
[]
[]
[null,null,null,null,null,null,null,null,null,null,null," FOR 6.1 - Rev.02 - Data: 07/02/2023 "]

{"sheet":"FAMÍLIA - REFERÊNCIAS","index":2,"n_rows":35,"n_cols":25,"rows_kept":35,"cut":false,"hidden":false,"merged":[[6,22,6,23],[7,22,7,23],[3,1,3,2],[2,1,2,2],[1,1,1,2],[4,1,4,2],[1,22,1,23],[2,22,2,23],[3,22,3,23],[4,22,4,23],[2,18,2,19],[3,18,3,19],[4,18,4,19],[1,5,1,6],[2,5,2,6],[3,5,3,6],[4,5,4,6],[1,9,1,10],[2,9,2,10],[3,9,3,10],[4,9,4,10],[6,18,6,19],[7,14,7,15],[7,18,7,19],[6,1,6,2],[7,1,7,2],[6,5,6,6],[7,9,7,10],[7,5,7,6],[6,9,6,10],[6,14,6,15],[1,14,1,15],[2,14,2,15],[3,14,3,15],[4,14,4,15],[1,18,1,19],[5,22,5,23],[5,1,5,2],[5,5,5,6],[5,9,5,10],[5,14,5,15],[5,18,5,19]]}
[null,null,null,"FAMÍLIA DE CADEIRA PLÁSTICA MONOBLOCO",null,null,null,null,null,null,null," FOR 6.1 - Rev.02 - \nData: 07/02/2023 ",null,null,null,null,"FAMÍLIA DE CADEIRA PLÁSTICA MONOBLOCO",null,null,null,null,null,null,null," FOR 6.1 - Rev.02 - \nData: 07/02/2023 "]
[null,"MODELO / REFERÊNCIA",null,"-",null,"MODELO / REFERÊNCIA",null,"-",null,"MODELO / REFERÊNCIA",null,"-",null,null,"MODELO / REFERÊNCIA",null,"-",null,"MODELO DO PRODUTO:",null,"-",null,"MODELO DO PRODUTO:",null,"-"]
[null,"MARCA:",null,"-",null,"MARCA:",null,"-",null,"MARCA:",null,"-",null,null,"MARCA:",null,"-",null,"MARCA:",null,"-",null,"MARCA:",null,"-"]
[null,"NOME COMERCIAL:",null,"-",null,"NOME COMERCIAL:",null,"-",null,"NOME COMERCIAL:",null,"-",null,null,"NOME COMERCIAL:",null,"-",null,"NOME COMERCIAL:",null,"-",null,"NOME COMERCIAL:",null,"-"]
[null,"ENCOSTO:",null,"-",null,"ENCOSTO:",null,"-",null,"ENCOSTO:",null,"-",null,null,"ENCOSTO:",null,"-",null,"ENCOSTO:",null,"-",null,"ENCOSTO:",null,"-"]
[null,{"$f":"IF(SOLICITAÇÃO!C5=\"1b - lote\",\"QUANTIDADE:\",\"\")","v":""},null,null,null,{"$f":"IF(SOLICITAÇÃO!C5=\"1b - lote\",\"QUANTIDADE:\",\"\")","v":""},null,null,null,{"$f":"IF(SOLICITAÇÃO!C5=\"1b - lote\",\"QUANTIDADE:\",\"\")","v":""},null,null,null,null,{"$f":"IF(SOLICITAÇÃO!C5=\"1b - lote\",\"QUANTIDADE:\",\"\")","v":""},null,null,null,{"$f":"IF(SOLICITAÇÃO!C5=\"1b - lote\",\"QUANTIDADE:\",\"\")","v":""},null,null,null,{"$f":"IF(SOLICITAÇÃO!C5=\"1b - lote\",\"QUANTIDADE:\",\"\")","v":""}]
[null,"FOTO FRONTAL",null,"FOTO LATERAL",null,"FOTO FRONTAL",null,"FOTO LATERAL",null,"FOTO FRONTAL",null,"FOTO LATERAL",null,null,"FOTO FRONTAL",null,"FOTO LATERAL",null,"FOTO FRONTAL",null,"FOTO LATERAL",null,"FOTO FRONTAL",null,"FOTO LATERAL"]
[]
[null,"Nº","CORES"," CÓDIGO DE BARRAS",null,"Nº","CORES"," CÓDIGO DE BARRAS",null,"Nº","CORES"," CÓDIGO DE BARRAS",null,null,"Nº","CORES"," CÓDIGO DE BARRAS",null,"Nº","CORES"," CÓDIGO DE BARRAS",null,"Nº","CORES"," CÓDIGO DE BARRAS"]
[null,1,null,null,null,1,null,null,null,1,null,null,null,null,1,null,null,null,1,null,null,null,1]
[null,2,null,null,null,2,null,null,null,2,null,null,null,null,2,null,null,null,2,null,null,null,2]
[null,3,null,null,null,3,null,null,null,3,null,null,null,null,3,null,null,null,3,null,null,null,3]
[null,4,null,null,null,4,null,null,null,4,null,null,null,null,4,null,null,null,4,null,null,null,4]
[null,5,null,null,null,5,null,null,null,5,null,null,null,null,5,null,null,null,5,null,null,null,5]
[null,6,null,null,null,6,null,null,null,6,null,null,null,null,6,null,null,null,6,null,null,null,6]
[null,7,null,null,null,7,null,null,null,7,null,null,null,null,7,null,null,null,7,null,null,null,7]
[null,8,null,null,null,8,null,null,null,8,null,null,null,null,8,null,null,null,8,null,null,null,8]
[null,9,null,null,null,9,null,null,null,9,null,null,null,null,9,null,null,null,9,null,null,null,9]
[null,10,null,null,null,10,null,null,null,10,null,null,null,null,10,null,null,null,10,null,null,null,10]
[null,11,null,null,null,11,null,null,null,11,null,null,null,null,11,null,null,null,11,null,null,null,11]
[null,12,null,null,null,12,null,null,null,12,null,null,null,null,12,null,null,null,12,null,null,null,12]
[null,13,null,null,null,13,null,null,null,13,null,null,null,null,13,null,null,null,13,null,null,null,13]
[null,13,null,null,null,13,null,null,null,13,null,null,null,null,13,null,null,null,13,null,null,null,13]
[null,15,null,null,null,15,null,null,null,15,null,null,null,null,15,null,null,null,15,null,null,null,15]
[null,16,null,null,null,16,null,null,null,16,null,null,null,null,16,null,null,null,16,null,null,null,16]
[null,17,null,null,null,17,null,null,null,17,null,null,null,null,17,null,null,null,17,null,null,null,17]
[null,18,null,null,null,18,null,null,null,18,null,null,null,null,18,null,null,null,18,null,null,null,18]
[null,19,null,null,null,19,null,null,null,19,null,null,null,null,19,null,null,null,19,null,null,null,19]
[null,20,null,null,null,20,null,null,null,20,null,null,null,null,20,null,null,null,20,null,null,null,20]
[null,21,null,null,null,21,null,null,null,21,null,null,null,null,21,null,null,null,21,null,null,null,21]
[null,22,null,null,null,22,null,null,null,22,null,null,null,null,22,null,null,null,22,null,null,null,22]
[null,23,null,null,null,23,null,null,null,23,null,null,null,null,23,null,null,null,23,null,null,null,23]
[null,24,null,null,null,24,null,null,null,24,null,null,null,null,24,null,null,null,24,null,null,null,24]
[null,25,null,null,null,25,null,null,null,25,null,null,null,null,25,null,null,null,25,null,null,null,25]
[null,26,null,null,null,26,null,null,null,26,null,null,null,null,26,null,null,null,26,null,null,null,26]

{"sheet":"PLANO DE ENSAIO","index":3,"n_rows":40,"n_cols":8,"rows_kept":40,"cut":false,"hidden":true,"merged":[[7,1,7,2],[7,3,7,9],[1,1,2,5],[1,6,1,9],[2,7,2,9],[3,1,3,9],[4,1,4,2],[4,3,4,9],[5,1,5,2],[5,3,5,5],[5,7,5,9],[6,1,6,2],[6,3,6,9],[8,1,8,2],[8,3,8,9],[9,1,9,2],[10,1,10,2],[10,3,10,4],[10,6,10,9],[9,3,9,4],[9,6,9,9],[13,1,13,9],[16,1,16,4],[16,5,16,9],[17,1,17,2],[17,3,17,4],[17,5,18,5],[17,6,18,9],[18,1,18,2],[14,1,14,9],[15,1,15,9],[11,1,11,2],[11,3,11,4],[11,6,11,9],[12,1,12,2],[12,3,12,4],[12,6,12,9],[30,7,30,9],[20,1,26,2],[20,3,26,4],[19,6,20,9],[18,3,18,4],[33,2,33,4],[33,7,33,9],[39,7,39,9],[39,2,39,4],[34,1,35,1],[34,2,35,4],[34,7,35,9],[37,7,37,9],[37,2,37,4],[38,7,38,9],[38,2,38,4],[36,7,36,9],[36,2,36,4],[19,1,19,2],[19,3,19,4],[31,2,31,4],[31,7,31,9],[32,2,32,4],[32,7,32,9],[19,5,20,5],[21,5,22,5],[23,5,26,5],[23,6,26,9],[21,6,22,9],[27,1,27,9],[28,1,28,4],[28,5,28,9],[29,1,29,9],[30,2,30,4]]}
[]
[null,"                            PLANO DE ENSAIOS PARA CADEIRA PLÁSTICA MONOBLOCO",null,null,null,null,"FOR.6.2"]
[null,null,null,null,null,null,"REV.00","2025-07-25"]
[null,"IDENTIFICAÇÃO DO SOLICITANTE"]
[null,"Razão Social: (Solicitante)",null,{"$f":"SOLICITAÇÃO!C9","v":"-"}]
[null,"Endereço: (Solicitante)",null,{"$f":"SOLICITAÇÃO!C12&\" - \"&SOLICITAÇÃO!C13&\" - \"&SOLICITAÇÃO!C15&\" - \"&SOLICITAÇÃO!C16","v":"- - - - - - -"},null,null,"CEP:",{"$f":"SOLICITAÇÃO!C14","v":"-"}]
[null,"CNPJ: (Solicitante)",null,{"$f":"SOLICITAÇÃO!C11","v":"-"}]
[null,"Fabricante:",null,{"$f":"[3]SOLICITAÇÃO!C25","v":"-"}]
[null,"Portaria:",null,"PORTARIA Nº 166, DE 14 DE ABRIL DE 2021 - Aprova o Regulamento Técnico da Qualidade e os Requisitos de Avaliação da Conformidade para Cadeiras Plásticas Monobloco – Consolidado.\nABNT NBR 14776:2013 - Cadeiras Plásticas Monobloco – Requisitos e Métodos de Ensaio"]
[null,"Rastreabilidade da amostra:",null,null,null,"Quantidade de amostras:"]
[null,"Modelo de certificação:",null,{"$f":"SOLICITAÇÃO!C5","v":"-"},null,"Tipo de amostra:","ESCOLHER UM ITEM."]
[null,"Tipo Amostragem:",null,"ESCOLHER UM ITEM.",null,"Processo: (Evento)"]
[null,"Técnico responsável:",null,null,null,"Data:"]
[null,"IDENTIFICAÇÃO DA AMOSTRA"]
[null,"Identificação da família"]
[null,{"$f":"G20&\" - \"&IF('CARACTERÍSTICAS CONSTRUTIVAS'!E28=\"-\",\"\",IF('CARACTERÍSTICAS CONSTRUTIVAS'!E28=\"Sim\",\"Com braço\",\"Sem braço\"))","v":"- - "}]
[null,"Identificação do modelo ",null,null,null,"Características construtivas"]
[null,"Modelo:",null,null,null,"CLASSE:",{"$f":"'CARACTERÍSTICAS CONSTRUTIVAS'!E26","v":"-"}]
[null,"Marca:"]
[null,"Nome comercial:",null,null,null,"MATERIAL: ",{"$f":"'CARACTERÍSTICAS CONSTRUTIVAS'!E27","v":"-"}]
[null,"Foto do produto:"]
[null,null,null,null,null,"APOIO DE BRAÇO:",{"$f":"'CARACTERÍSTICAS CONSTRUTIVAS'!E28","v":"-"}]
[]
[null,null,null,null,null,"DIMENSÕES:",{"$f":"\"DIMENSÕES DA CADEIRA: \"&'CARACTERÍSTICAS CONSTRUTIVAS'!E31&\"mm\n\n\"&\"A>> ALTURA DO ASSENTO: \"&'CARACTERÍSTICAS CONSTRUTIVAS'!E33&\"mm\n\n\"&\"B>> DISTÂNCIA ENTRE PERNAS LATERAL: \"&'CARACTERÍSTICAS CONSTRUTIVAS'!E35&\"mm\n\n\"&'CARACTERÍSTICAS CONSTRUTIVAS'!E36&\": \"&'CARACTERÍSTICAS CONSTRUTIVAS'!E37&\"mm\"","v":"DIMENSÕES DA CADEIRA: -mm\n\nA>> ALTURA DO ASSENTO: -mm\n\nB>> DISTÂNCIA ENTRE PERNAS LATERAL: -mm\n\nD >> LARGURA DO ASSENTO DA CADEIRA - COM BRAÇO: -mm"}]
[]
[]
[]
[null,"METODOLOGIA:"]
[null,"Base normativa a ser utilizada",null,null,null,{"$f":"D9","v":"PORTARIA Nº 166, DE 14 DE ABRIL DE 2021 - Aprova o Regulamento Técnico da Qualidade e os Requisitos de Avaliação da Conformidade para Cadeiras Plásticas Monobloco – Consolidado.\nABNT NBR 14776:2013 - Cadeiras Plásticas Monobloco – Requisitos e Métodos de Ensaio"}]
[null,"Tabela 1: Ensaios e itens de verificação a serem realizados em CPM"]
[null,"Requisito do RTQ","Ensaios",null,null,"Base Normativa","Item","Execução?"]
[null,"5.1","Classificação - Inspeção visual",null,null,"ABNT NBR 14776:2013 e RTQ","3.1","Escolher um item."]
[null,"5.2","Materiais - Análise documental",null,null,"ABNT NBR 14776:2013","3.2","Escolher um item."]
[null,"5.3","Aspectos visuais - Inspeção visual",null,null,"ABNT NBR 14776:2013","3.5 / 3.6","Escolher um item."]
[null,"5.4","Dimensões mínimas",null,null,"ABNT NBR 14776:2013","3.3","Escolher um item."]
[null,null,null,null,null,"RTQ","Tabela 1"]
[null,"5.5","Carregamento estático em superfície lisa",null,null,"ABNT NBR 14776:2013","4.2.1","Escolher um item."]
[null,"5.6","Resistência ao impacto em superfície lisa",null,null,"ABNT NBR 14776:2013","4.2.2","Escolher um item."]
[null,"5.7","Resistência das pernas traseiras em superfície lisa",null,null,"ABNT NBR 14776:2013","4.2.3","Escolher um item."]
[null,6,"Marcações",null,null,"RTQ",6,"Escolher um item."]

{"sheet":"Plan1","index":4,"n_rows":11,"n_cols":6,"rows_kept":11,"cut":false,"hidden":true,"merged":[[5,1,5,2],[5,4,5,5]]}
[]
[null,null,"-",null,"-"]
[null,"MODELO DE CERTIFICAÇÃO 1b - Ensaio de lote\n\n N° da Licença de importação ou LPCO - (no caso de produtos importados): \n Declaração de importação (DI) ou DUIMP:\n Identificação do lote:\n Tamanho do lote:","SIM",null,"Residencial ","C >> LARGURA DO ASSENTO DA CADEIRA - SEM BRAÇO: "]
[null,null,"NÃO",null,"Irrestrito ","D >> LARGURA DO ASSENTO DA CADEIRA - COM BRAÇO: "]
[]
[null,"Tabela 1 - Dimensões mínimas das cadeiras plásticas monobloco",null,null,"Tabela 3 - Altura do bloco em função da distância entre as pernas da cadeira"]
[null,"Partes de Cadeira","Dimensões (mm)",null,"Distância entre as pernas (d) mm","Altura do bloco de madeira - mm"]
[null,"Altura do assento",380,null,"d <381","76 + 0,80"]
[null,"Distância entre pernas lateral","Ver tabela 3",null,"381 < d < 432","95 + 0,95"]
[null,"Largura do assento de cadeira com braço",400,null,"d > 432","114 + 1,10"]
[null,"Largura do assento de cadeira sem braço",340,null,"-","-"]